fUST/lending_fUST_20250812
["ID","MTS","AMOUNT","RATE_DAILY","PERIOD"]
[378672916,1754953851851,-460.0,0.00019452,2]
[378672917,1754953851864,-460.0,0.00019452,2]
[378672918,1754953851878,-591.63,0.00019452,2]
[378672919,1754953851893,-460.0,0.00019452,2]
[378672920,1754953851907,-1622.43,0.00019452,2]
[378672921,1754953851921,-460.0,0.00019452,2]
[378672922,1754953851936,-1032.13,0.00019452,2]
[378672923,1754953851951,-460.0,0.00019452,2]
[378672924,1754953851966,-552.59,0.00019452,2]
[378672925,1754953851979,-460.0,0.00019452,2]
[378672926,1754953851995,-460.0,0.00019452,2]
[378672927,1754953852011,-460.0,0.00019452,2]
[378672928,1754953852025,-460.0,0.00019452,2]
[378672929,1754953852042,-270.029646,0.00019452,2]
[378672930,1754953852055,-270.029646,0.00019452,2]
[378672931,1754953852067,-3498.28,0.00019452,2]
[378672932,1754953852078,-1373.19,0.00019452,2]
[378672933,1754953852091,-460.0,0.00019452,2]
[378672934,1754953852104,-460.0,0.00019452,2]
[378672935,1754953852117,-460.0,0.00019452,2]
[378672936,1754953852131,-460.0,0.00019452,2]
[378672937,1754953852143,-207.24806,0.00019452,2]
[378672938,1754953852157,-490.28,0.00019452,2]
[378672939,1754953852171,-270.029646,0.00019452,2]
[378672940,1754953852185,-270.029646,0.00019452,2]
[378672941,1754953852196,-1158.26,0.00019452,2]
[378672942,1754953852206,-460.0,0.00019452,2]
[378672943,1754953852217,-1667.52,0.00019452,2]
[378672944,1754953852230,-460.0,0.00019452,2]
[378672945,1754953852245,-460.0,0.00019452,2]
[378672946,1754953852258,-460.0,0.00019452,2]
[378672947,1754953852270,-460.0,0.00019452,2]
[378672948,1754953852282,-261.250584,0.00019452,2]
[378672949,1754953852297,-460.0,0.00019452,2]
[378672950,1754953852309,-460.0,0.00019452,2]
[378672951,1754953852320,-460.0,0.00019452,2]
[378672952,1754953852334,-460.0,0.00019452,2]
[378672953,1754953852345,-460.0,0.00019452,2]
[378672954,1754953852357,-460.0,0.00019452,2]
[378672955,1754953852370,-460.0,0.00019452,2]
[378672956,1754953852384,-460.0,0.00019452,2]
[378672957,1754953852398,-460.0,0.00019452,2]
[378672958,1754953852411,-611.21,0.00019452,2]
[378672959,1754953852425,-460.0,0.00019452,2]
[378672960,1754953852439,-460.0,0.00019452,2]
[378672961,1754953852452,-1782.79,0.00019452,2]
[378672962,1754953852465,-721.31,0.00019452,2]
[378672963,1754953852478,-460.0,0.00019452,2]
[378672964,1754953852492,-460.0,0.00019452,2]
[378672965,1754953852505,-6022.3,0.00019452,2]
[378672966,1754953852517,-460.0,0.00019452,2]
[378672967,1754953852529,-460.0,0.00019452,2]
[378672968,1754953852542,-1242.454206,0.00019452,2]
[378672969,1754953852555,-1242.454206,0.00019452,2]
[378672970,1754953852566,-460.0,0.00019452,2]
[378672971,1754953852579,-4955.59,0.00019452,2]
[378672972,1754953852591,-720.85,0.00019452,2]
[378672973,1754953852603,-1592.4,0.00019452,2]
[378672974,1754953852615,-2394.06,0.00019452,2]
[378672975,1754953852627,-151.0,0.00019452,2]
[378672976,1754953852639,-460.0,0.00019452,2]
[378672977,1754953852650,-2261.58,0.00019452,2]
[378672978,1754953852661,-1242.454206,0.00019452,2]
[378672979,1754953852673,-1242.454206,0.00019452,2]
[378672980,1754953852687,-1284.38,0.00019452,2]
[378672981,1754953852699,-151.0,0.00019452,2]
[378672982,1754953852714,-460.0,0.00019452,2]
[378672983,1754953852726,-151.0,0.00019452,2]
[378672984,1754953852738,-151.0,0.00019452,2]
[378672985,1754953852750,-12092.97,0.00019452,2]
[378672986,1754953852761,-151.0,0.00019452,2]
[378672987,1754953852777,-1031.0,0.00019452,2]
[378672988,1754953852790,-460.0,0.00019452,2]
[378672989,1754953852805,-509.99994878,0.00019452,2]
[378672990,1754953852818,-460.0,0.00019452,2]
[378672991,1754953852831,-460.0,0.00019452,2]
[378672992,1754953852845,-460.0,0.00019452,2]
[378672993,1754953852865,-460.0,0.00019452,2]
[378672994,1754953852877,-711.5,0.00019452,2]
[378672995,1754953852889,-460.0,0.00019452,2]
[378672996,1754953852901,-460.0,0.00019452,2]
[378672997,1754953852914,-460.0,0.00019452,2]
[378672998,1754953852926,-460.0,0.00019452,2]
[378672999,1754953852939,-460.0,0.00019452,2]
[378673000,1754953852951,-521.24,0.00019452,2]
[378673001,1754953852963,-1397.25,0.00019452,2]
[378673002,1754953852975,-460.0,0.00019452,2]
[378673003,1754953852987,-460.0,0.00019452,2]
[378673004,1754953852998,-460.0,0.00019452,2]
[378673005,1754953853010,-460.0,0.00019452,2]
[378673006,1754953853022,-1012.76,0.00019452,2]
[378673007,1754953853033,-460.0,0.00019452,2]
[378673008,1754953853044,-460.0,0.00019452,2]
[378673009,1754953853056,-779.21,0.00019452,2]
[378673010,1754953853067,-460.0,0.00019452,2]
[378673011,1754953853079,-973.9,0.00019452,2]
[378673012,1754953853090,-460.0,0.00019452,2]
[378673013,1754953853101,-460.0,0.00019452,2]
[378673014,1754953853113,-460.0,0.00019452,2]
[378673015,1754953853125,-460.0,0.00019452,2]
[378673016,1754953853136,-460.0,0.00019452,2]
[378673017,1754953853148,-460.0,0.00019452,2]
[378673018,1754953853159,-610.34,0.00019452,2]
[378673019,1754953853170,-460.0,0.00019452,2]
[378673020,1754953853181,-460.0,0.00019452,2]
[378673021,1754953853193,-460.0,0.00019452,2]
[378673022,1754953853204,-460.0,0.00019452,2]
[378673023,1754953853215,-460.0,0.00019452,2]
[378673024,1754953853227,-460.0,0.00019452,2]
[378673025,1754953853238,-460.0,0.00019452,2]
[378673026,1754953853250,-460.0,0.00019452,2]
[378673027,1754953853262,-460.0,0.00019452,2]
[378673028,1754953853273,-151.0,0.00019452,2]
[378673029,1754953853285,-151.0,0.00019452,2]
[378673030,1754953853296,-151.0,0.00019452,2]
[378673031,1754953853308,-151.0,0.00019452,2]
[378673032,1754953853320,-460.0,0.00019452,2]
[378673033,1754953853330,-5016.52,0.00019452,2]
[378673034,1754953853342,-460.0,0.00019452,2]
[378673035,1754953853359,-151.0,0.00019452,2]
[378673036,1754953853370,-460.0,0.00019452,2]
[378673037,1754953853380,-460.0,0.00019452,2]
[378673038,1754953853391,-803.7,0.00019452,2]
[378673039,1754953853403,-460.0,0.00019452,2]
[378673040,1754953853414,-460.0,0.00019452,2]
[378673041,1754953853425,-460.0,0.00019452,2]
[378673042,1754953853437,-460.0,0.00019452,2]
[378673043,1754953853448,-171.928429,0.00019452,2]
[378673044,1754953853460,-171.928429,0.00019452,2]
[378673045,1754953853472,-460.0,0.00019452,2]
[378673046,1754953853483,-460.0,0.00019452,2]
[378673047,1754953853495,-171.928429,0.00019452,2]
[378673048,1754953853506,-171.928429,0.00019452,2]
[378673049,1754953853517,-2041.69,0.00019452,2]
[378673050,1754953853530,-151.0,0.00019452,2]
[378673051,1754953853542,-259.049617,0.00019452,2]
[378673052,1754953853553,-498.39,0.00019452,2]
[378673053,1754953853565,-460.0,0.00019452,2]
[378673054,1754953853576,-460.0,0.00019452,2]
[378673055,1754953853588,-460.0,0.00019452,2]
[378673056,1754953853598,-1445.66,0.00019452,2]
[378673057,1754953853610,-4125.05,0.00019452,2]
[378673058,1754953853623,-460.0,0.00019452,2]
[378673059,1754953853634,-505.96,0.00019452,2]
[378673060,1754953853645,-748.64,0.00019452,2]
[378673061,1754953853656,-460.0,0.00019452,2]
[378673062,1754953853668,-1411.37,0.00019452,2]
[378673063,1754953853679,-460.0,0.00019452,2]
[378673064,1754953853690,-460.0,0.00019452,2]
[378673065,1754953853703,-460.0,0.00019452,2]
[378673066,1754953853717,-460.0,0.00019452,2]
[378673067,1754953853728,-460.0,0.00019452,2]
[378673068,1754953853739,-460.0,0.00019452,2]
[378673069,1754953853752,-4387.52,0.00019452,2]
[378673070,1754953853763,-1228.7,0.00019452,2]
[378673071,1754953853775,-460.0,0.00019452,2]
[378673072,1754953853787,-460.0,0.00019452,2]
[378673073,1754953853799,-471.88,0.00019452,2]
[378673074,1754953853810,-2981.99,0.00019452,2]
[378673075,1754953853823,-918.61,0.00019452,2]
[378673076,1754953853834,-869.8,0.00019452,2]
[378673077,1754953853843,-460.0,0.00019452,2]
[378673078,1754953854100,-460.0,0.00019452,2]
[378673079,1754953854122,-460.0,0.00019452,2]
[378673080,1754953854132,-460.0,0.00019452,2]
[378673081,1754953854142,-460.0,0.00019452,2]
[378673082,1754953854151,-460.0,0.00019452,2]
[378673083,1754953854160,-460.0,0.00019452,2]
[378673084,1754953854169,-460.0,0.00019452,2]
[378673085,1754953854178,-632.63,0.00019452,2]
[378673086,1754953854188,-820.18,0.00019452,2]
[378673087,1754953854197,-460.0,0.00019452,2]
[378673088,1754953854206,-460.0,0.00019452,2]
[378673089,1754953854215,-1464.56,0.00019452,2]
[378673090,1754953854225,-2551.87,0.00019452,2]
[378673091,1754953854235,-460.0,0.00019452,2]
[378673092,1754953854244,-460.0,0.00019452,2]
[378673093,1754953854253,-648.1,0.00019452,2]
[378673094,1754953854263,-460.0,0.00019452,2]
[378673095,1754953854272,-460.0,0.00019452,2]
[378673096,1754953854280,-460.0,0.00019452,2]
[378673097,1754953854289,-2050.97,0.00019452,2]
[378673098,1754953854298,-3927.03,0.00019452,2]
[378673099,1754953854307,-460.0,0.00019452,2]
[378673100,1754953854317,-460.0,0.00019452,2]
[378673101,1754953854326,-740.25,0.00019452,2]
[378673102,1754953854336,-460.0,0.00019452,2]
[378673103,1754953854345,-483.74,0.00019452,2]
[378673104,1754953854354,-151.0,0.00019452,2]
[378673105,1754953854363,-460.0,0.00019452,2]
[378673106,1754953854372,-460.0,0.00019452,2]
[378673107,1754953854382,-227.234988,0.00019452,2]
[378673108,1754953854391,-1093.38,0.00019452,2]
[378673109,1754953854400,-460.0,0.00019452,2]
[378673110,1754953854409,-460.0,0.00019452,2]
[378673111,1754953854418,-460.0,0.00019452,2]
[378673112,1754953854428,-464.95691864,0.00019452,2]
[378673113,1754953854438,-1649.66,0.00019452,2]
[378673114,1754953854449,-1487.11,0.00019452,2]
[378673115,1754953854458,-460.0,0.00019452,2]
[378673116,1754953854468,-460.0,0.00019452,2]
[378673117,1754953854477,-1075.09,0.00019452,2]
[378673118,1754953854486,-460.0,0.00019452,2]
[378673119,1754953854497,-460.0,0.00019452,2]
[378673120,1754953854506,-460.0,0.00019452,2]
[378673121,1754953854515,-151.0,0.00019452,2]
[378673122,1754953854525,-151.0,0.00019452,2]
[378673123,1754953854536,-460.02947924,0.00019452,2]
[378673124,1754953854545,-460.0,0.00019452,2]
[378673125,1754953854555,-460.0,0.00019452,2]
[378673126,1754953854564,-581.2765512,0.00019452,2]
[378673127,1754953854573,-460.0,0.00019452,2]
[378673128,1754953854582,-460.0,0.00019452,2]
[378673129,1754953854592,-460.0,0.00019452,2]
[378673130,1754953854601,-573.61,0.00019452,2]
[378673131,1754953854612,-281.13136386,0.00019452,2]
[378673132,1754953854625,-460.0,0.00019452,2]
[378673133,1754953854634,-812.86,0.00019452,2]
[378673134,1754953854643,-460.0,0.00019452,2]
[378673135,1754953854653,-460.0,0.00019452,2]
[378673136,1754953854663,-460.0,0.00019452,2]
[378673137,1754953854673,-183.14996323,0.00019452,2]
[378673138,1754953854683,-460.0,0.00019452,2]
[378673139,1754953854692,-460.0,0.00019452,2]
[378673140,1754953854702,-500.0,0.00019452,2]
[378673141,1754953854716,-309.445188,0.00019459,15]
[378673142,1754953854726,-407.0,0.00019472,2]
[378673143,1754953854736,-500.0,0.00019473,2]
[378673144,1754953854746,-500.0,0.00019473,2]
[378673145,1754953854756,-500.0,0.00019473,2]
[378673146,1754953854765,-340.91787696,0.00019473,2]
[378673147,1754953854777,-158.46166641,0.00019473,2]
[378673148,1754953854787,-248.49009127,0.00019473,2]
[378673149,1754953854800,-151.0,0.00019585,2]
[378673150,1754953854810,-151.0,0.00019585,2]
[378673151,1754953854820,-151.0,0.00019585,2]
[378673152,1754953854829,-151.0,0.00019585,2]
[378673153,1754953854838,-466.47426,0.00019585,2]
[378673154,1754953854848,-466.47426,0.00019585,2]
[378673155,1754953854857,-160.0,0.00019593,2]
[378673156,1754953854867,-160.0,0.00019593,2]
[378673157,1754953854875,-160.0,0.00019593,2]
[378673158,1754953854887,-160.0,0.00019593,2]
[378673159,1754953854897,-215.4905783,0.00019593,2]
[378673160,1754953854906,-160.0,0.00019593,2]
[378673161,1754953854915,-417.15472785,0.00019593,2]
[378673162,1754953854925,-160.0,0.00019593,2]
[378673163,1754953854935,-12671.21867243,0.00019593,2]
[378673164,1754953854943,-160.0,0.00019593,2]
[378673165,1754953854953,-160.0,0.00019593,2]
[378673166,1754953854963,-160.0,0.00019593,2]
[378673167,1754953854972,-527.9539256,0.00019593,2]
[378673168,1754953854982,-216.68257536,0.00019593,2]
[378673169,1754953854991,-843.18994796,0.00019593,2]
[378673170,1754953855000,-231.9940742,0.00019593,2]
[378673171,1754953855010,-461.69158338,0.00019593,2]
[378673172,1754953855019,-3984.186465,0.00019594,2]
[378673173,1754953855028,-3984.186465,0.00019594,2]
[378673174,1754953855037,-151.0,0.00019594,2]
[378673175,1754953855046,-151.0,0.00019594,2]
[378673176,1754953855056,-155.426614,0.00019594,2]
[378673177,1754953855065,-151.0,0.00019594,2]
[378673178,1754953855074,-596.685336,0.00019594,2]
[378673179,1754953855084,-596.685336,0.00019594,2]
[378673180,1754953855094,-151.0,0.00019594,2]
[378673181,1754953855104,-151.0,0.00019594,2]
[378673182,1754953855113,-254.270795,0.00019594,2]
[378673183,1754953855122,-254.270795,0.00019594,2]
[378673184,1754953855132,-151.0,0.00019594,2]
[378673185,1754953855142,-162.221094,0.00019594,2]
[378673186,1754953855151,-151.0,0.00019594,2]
[378673187,1754953855160,-171.928429,0.00019594,2]
[378673188,1754953855169,-171.928429,0.00019594,2]
[378673189,1754953855178,-407.0,0.00019609,2]
[378673190,1754953855187,-309.445188,0.00019613,15]
[378673191,1754953855197,-1000.0,0.00019621,2]
[378673192,1754953855206,-1000.0,0.00019621,2]
[378673193,1754953855215,-1000.0,0.00019621,2]
[378673194,1754953855224,-1000.0,0.00019621,2]
[378673195,1754953855235,-309.445188,0.0001967,2]
[378673196,1754953855244,-150.0,0.00019688,2]
[378673197,1754953855253,-206.234,0.00019688,2]
[378673198,1754953855262,-179.415,0.00019688,2]
[378673199,1754953855272,-1300.0,0.00019712,2]
[378673200,1754953855281,-500.0,0.00019721,2]
[378673201,1754953855291,-1000.0,0.00019721,2]
[378673202,1754953855300,-603.34314445,0.00019721,2]
[378673203,1754953855309,-942.07213191,0.00019721,2]
[378673204,1754953855319,-400.0,0.00019721,2]
[378673205,1754953855328,-1000.0,0.00019721,2]
[378673206,1754953855337,-500.0,0.00019721,2]
[378673207,1754953855346,-500.86414136,0.00019721,2]
[378673208,1754953855356,-440.2225863,0.00019721,2]
[378673209,1754953855666,-691.74281572,0.00019721,2]
[378673210,1754953855675,-500.0,0.00019721,2]
[378673211,1754953855685,-1000.0,0.00019721,2]
[378673212,1754953855694,-500.0,0.00019721,2]
[378673213,1754953855705,-1070.05000165,0.00019721,2]
[378673214,1754953855716,-1000.0,0.00019721,2]
[378673215,1754953855725,-1000.0,0.00019721,2]
[378673216,1754953855736,-1000.0,0.00019721,2]
[378673217,1754953855745,-1000.0,0.00019721,2]
[378673218,1754953855756,-505.25769152,0.00019721,2]
[378673219,1754953855766,-500.0,0.00019721,2]
[378673220,1754953855775,-643.23018435,0.00019721,2]
[378673221,1754953856266,-1020.14211756,0.00019178,2]
[378673222,1754953856277,-1446.71788244,0.00019178,2]
[378673223,1754953856287,-2466.86,0.00019178,2]
[378673224,1754953856296,-769.20211777,0.00019178,2]
[378673227,1754953907196,229.873568,0.00023,30]
[378673228,1754953907301,229.873568,0.00023,30]
[378673229,1754953907484,229.873568,0.00023,30]
[378673230,1754953907773,229.873568,0.00023,30]
[378673231,1754953908086,229.873568,0.00023,30]
[378673232,1754953913314,229.873568,0.000205,20]
[378673234,1754953962131,154.722597,0.00023,30]
[378673241,1754954154332,24900.0,0.00018177,2]
[378673256,1754954434492,653.57412663,0.00029041,120]
[378673260,1754954505716,247.998215,0.00023,30]
[378673261,1754954506050,247.998215,0.00023,30]
[378673262,1754954506339,247.998215,0.00023,30]
[378673263,1754954506637,247.998215,0.00023,30]
[378673264,1754954506926,247.998215,0.00023,30]
[378673265,1754954510024,247.998215,0.000205,20]
[378673273,1754954808880,471.96369,0.00013699,2]
[378673279,1754955022662,1760.0,0.00018706,2]
[378673280,1754955023213,1563.68914313,0.00018706,2]
[378673308,1754955032609,-392.87208437,0.000189,2]
[378673309,1754955032619,-822.0,0.00018904,2]
[378673310,1754955032629,-49.94675593,0.00019024,2]
[378673317,1754955038516,-1150.05324407,0.00019024,2]
[378673318,1754955038527,-160.0,0.00019025,2]
[378673319,1754955038536,-275.30608066,0.00019078,2]
[378673320,1754955038546,-300.0,0.00019159,2]
[378673321,1754955038556,-9347.0495268,0.0001916,2]
[378673322,1754955038566,-537.06,0.00019168,3]
[378673323,1754955038576,-500.0,0.00019173,2]
[378673324,1754955038585,-500.0,0.00019173,2]
[378673325,1754955038595,-500.0,0.00019173,2]
[378673326,1754955038605,-440.2225863,0.00019173,2]
[378673327,1754955038615,-500.0,0.00019173,2]
[378673328,1754955038624,-500.0,0.00019173,2]
[378673329,1754955038634,-500.0,0.00019177,2]
[378673330,1754955038643,-500.0,0.00019177,2]
[378673331,1754955038653,-500.0,0.00019177,2]
[378673332,1754955038662,-474.35057125,0.00019177,2]
[378673333,1754955038672,-500.0,0.00019177,2]
[378673334,1754955038682,-551.312391,0.00019177,2]
[378673335,1754955038691,-500.0,0.00019177,2]
[378673336,1754955038701,-222.983312,0.00019178,2]
[378673337,1754955038711,-222.983312,0.00019178,2]
[378673338,1754955038720,-151.0,0.00019178,2]
[378673339,1754955038730,-151.0,0.00019178,2]
[378673340,1754955038740,-2000.0,0.00019178,2]
[378673341,1754955038750,-2000.0,0.00019178,2]
[378673342,1754955038759,-651.504,0.00019178,2]
[378673343,1754955038768,-460.0,0.00019178,2]
[378673344,1754955038778,-460.0,0.00019178,2]
[378673345,1754955038788,-460.0,0.00019178,2]
[378673346,1754955038797,-460.0,0.00019178,2]
[378673347,1754955038807,-460.0,0.00019178,2]
[378673348,1754955038817,-460.0,0.00019178,2]
[378673349,1754955038827,-460.0,0.00019178,2]
[378673350,1754955038836,-460.0,0.00019178,2]
[378673351,1754955038846,-460.0,0.00019178,2]
[378673352,1754955038855,-460.0,0.00019178,2]
[378673353,1754955038865,-460.0,0.00019178,2]
[378673354,1754955038875,-466.05045501,0.00019178,2]
[378673355,1754955038884,-460.0,0.00019178,2]
[378673356,1754955038894,-460.0,0.00019178,2]
[378673357,1754955038903,-460.0,0.00019178,2]
[378673358,1754955038912,-460.0,0.00019178,2]
[378673359,1754955038922,-460.0,0.00019178,2]
[378673360,1754955038931,-460.0,0.00019178,2]
[378673361,1754955038940,-460.0,0.00019178,2]
[378673362,1754955038949,-460.0,0.00019178,2]
[378673363,1754955038959,-460.0,0.00019178,2]
[378673364,1754955038968,-460.0,0.00019178,2]
[378673365,1754955038977,-460.0,0.00019178,2]
[378673366,1754955038986,-460.0,0.00019178,2]
[378673367,1754955038995,-460.0,0.00019178,2]
[378673368,1754955039004,-460.0,0.00019178,2]
[378673369,1754955039013,-460.0,0.00019178,2]
[378673370,1754955039023,-460.0,0.00019178,2]
[378673371,1754955039032,-460.0,0.00019178,2]
[378673372,1754955039042,-460.0,0.00019178,2]
[378673373,1754955039051,-460.0,0.00019178,2]
[378673374,1754955039061,-460.0,0.00019178,2]
[378673375,1754955039070,-460.0,0.00019178,2]
[378673376,1754955039079,-460.0,0.00019178,2]
[378673377,1754955039089,-460.0,0.00019178,2]
[378673378,1754955039098,-460.0,0.00019178,2]
[378673379,1754955039108,-460.0,0.00019178,2]
[378673380,1754955039117,-460.0,0.00019178,2]
[378673381,1754955039127,-460.0,0.00019178,2]
[378673382,1754955039136,-460.0,0.00019178,2]
[378673383,1754955039145,-460.0,0.00019178,2]
[378673384,1754955039155,-460.0,0.00019178,2]
[378673385,1754955039164,-460.0,0.00019178,2]
[378673386,1754955039174,-460.0,0.00019178,2]
[378673387,1754955039184,-460.0,0.00019178,2]
[378673388,1754955039196,-460.0,0.00019178,2]
[378673389,1754955039206,-437.57077797,0.00019178,2]
[378673390,1754955039216,-322.29616032,0.00019178,7]
[378673391,1754955039225,-460.0,0.00019178,2]
[378673392,1754955039234,-460.0,0.00019178,2]
[378673393,1754955039245,-460.0,0.00019178,2]
[378673394,1754955039254,-460.0,0.00019178,2]
[378673395,1754955039263,-583.49854419,0.00019178,2]
[378673396,1754955039273,-460.0,0.00019178,2]
[378673397,1754955039283,-460.0,0.00019178,2]
[378673398,1754955039292,-460.0,0.00019178,2]
[378673399,1754955039301,-460.0,0.00019178,2]
[378673400,1754955039311,-460.0,0.00019178,2]
[378673401,1754955039321,-460.0,0.00019178,2]
[378673402,1754955039331,-460.0,0.00019178,2]
[378673403,1754955039340,-460.0,0.00019178,2]
[378673404,1754955039350,-460.0,0.00019178,2]
[378673405,1754955039360,-460.0,0.00019178,2]
[378673406,1754955039370,-460.0,0.00019178,2]
[378673407,1754955039379,-460.0,0.00019178,2]
[378673408,1754955039389,-460.0,0.00019178,2]
[378673409,1754955039398,-460.0,0.00019178,2]
[378673410,1754955039408,-460.0,0.00019178,2]
[378673411,1754955039418,-305.8984454,0.00019178,2]
[378673412,1754955039427,-460.0,0.00019178,2]
[378673413,1754955039437,-464.89380412,0.00019178,2]
[378673414,1754955039447,-460.0,0.00019178,2]
[378673415,1754955039457,-460.0,0.00019178,2]
[378673416,1754955039467,-460.0,0.00019178,2]
[378673417,1754955039476,-460.0,0.00019178,2]
[378673418,1754955039485,-460.0,0.00019178,2]
[378673419,1754955039497,-460.0,0.00019178,2]
[378673420,1754955039506,-460.0,0.00019178,2]
[378673421,1754955039516,-460.0,0.00019178,2]
[378673422,1754955039525,-460.0,0.00019178,2]
[378673423,1754955039534,-1047.82,0.00019178,2]
[378673424,1754955039544,-460.0,0.00019178,2]
[378673425,1754955039553,-460.0,0.00019178,2]
[378673426,1754955039562,-195.96108979,0.00019178,2]
[378673427,1754955039571,-460.0,0.00019178,2]
[378673428,1754955039580,-460.0,0.00019178,2]
[378673429,1754955039589,-462.57621199,0.00019178,2]
[378673430,1754955039599,-460.0,0.00019178,2]
[378673431,1754955039608,-460.0,0.00019178,2]
[378673432,1754955039617,-787.06,0.00019178,2]
[378673433,1754955039627,-460.0,0.00019178,2]
[378673434,1754955039636,-460.0,0.00019178,2]
[378673435,1754955039646,-460.0,0.00019178,2]
[378673436,1754955039656,-460.0,0.00019178,2]
[378673437,1754955039665,-461.41707028,0.00019178,2]
[378673438,1754955039674,-460.0,0.00019178,2]
[378673439,1754955039683,-460.0,0.00019178,2]
[378673440,1754955039693,-408.57570011,0.00019178,2]
[378673441,1754955039703,-460.0,0.00019178,2]
[378673442,1754955039712,-460.0,0.00019178,2]
[378673443,1754955039722,-460.0,0.00019178,2]
[378673444,1754955039732,-460.0,0.00019178,2]
[378673445,1754955039741,-4399.44,0.00019178,2]
[378673446,1754955039752,-460.0,0.00019178,2]
[378673447,1754955039762,-512.97,0.00019178,2]
[378673448,1754955039771,-460.0,0.00019178,2]
[378673449,1754955039781,-460.0,0.00019178,2]
[378673450,1754955039801,-460.0,0.00019178,2]
[378673451,1754955039811,-460.0,0.00019178,2]
[378673452,1754955039821,-460.0,0.00019178,2]
[378673453,1754955039831,-176.83265118,0.00019178,2]
[378673454,1754955039841,-460.0,0.00019178,2]
[378673455,1754955039851,-460.0,0.00019178,2]
[378673456,1754955039860,-460.0,0.00019178,2]
[378673457,1754955039870,-460.0,0.00019178,2]
[378673458,1754955039880,-461.60381842,0.00019178,2]
[378673459,1754955039890,-460.0,0.00019178,2]
[378673460,1754955039899,-377.78439686,0.00019178,2]
[378673461,1754955039908,-460.0,0.00019178,2]
[378673462,1754955039918,-460.0,0.00019178,2]
[378673463,1754955039928,-460.0,0.00019178,2]
[378673464,1754955039937,-460.0,0.00019178,2]
[378673465,1754955039946,-460.0,0.00019178,2]
[378673466,1754955039956,-460.0,0.00019178,2]
[378673467,1754955039965,-460.0,0.00019178,2]
[378673468,1754955039975,-460.0,0.00019178,2]
[378673469,1754955039984,-460.0,0.00019178,2]
[378673470,1754955039994,-460.0,0.00019178,2]
[378673471,1754955040003,-460.0,0.00019178,2]
[378673472,1754955040012,-460.0,0.00019178,2]
[378673473,1754955040022,-460.0,0.00019178,2]
[378673474,1754955040031,-460.0,0.00019178,2]
[378673475,1754955040040,-460.0,0.00019178,2]
[378673476,1754955040050,-460.0,0.00019178,2]
[378673477,1754955040059,-460.0,0.00019178,2]
[378673478,1754955040069,-460.0,0.00019178,2]
[378673479,1754955040078,-460.0,0.00019178,2]
[378673480,1754955040087,-460.0,0.00019178,2]
[378673481,1754955040097,-460.0,0.00019178,2]
[378673482,1754955040107,-460.0,0.00019178,2]
[378673483,1754955040116,-460.0,0.00019178,2]
[378673484,1754955040125,-460.0,0.00019178,2]
[378673485,1754955040135,-460.0,0.00019178,2]
[378673486,1754955040144,-460.0,0.00019178,2]